Cogmind - Beta 16 @@@ ROGUE MODE // 2025.11.13 @ 18:06:04 Player: Reflectatory Result: Destroyed by S-27 Virus with Autogun Performance ------------- Evolutions (3) 1500 Regions Visited (10) 2000 Robots Destroyed (52) 260 Value Destroyed (2125) 2125 Prototype IDs (9) 180 Alien Tech Used (0) 0 Bonus (1303) 1303 TOTAL SCORE: 7368 Bonus ------- Pacifist 200 High Alert Combat Kills 162 Follower Combat Kills 241 Entered Garrisons 200 Used RIF Installer 500 Cogmind --------- Core Integrity 0/700 Matter 300/300 Energy 96/100 System Corruption 15% Temperature Cool (0) Movement Rolling (100) Location -7/Lower Caves Parts ------- > --- POWER (1) -------- (None) > --- PROPULSION (4) --- Armored Huge Wheel > --- UTILITY (6) ------ Hardened Heavy Armor Plating Field Recycling Unit > --- WEAPON (2) ------- (None) > --- INVENTORY (5) ---- Arc Projector Peak State ------------ > --- POWER ------------ Ion Engine > --- PROPULSION ------- Medium Treads Medium Treads Medium Treads Medium Treads > --- UTILITY ---------- Machine Analyzer Experimental Sensor Array Signal Interpreter System Shield > --- WEAPON ----------- Heavy Laser Beamcaster > --- INVENTORY -------- Machine Analyzer Hardened Light Armor Plating Improved Medium Laser Field Laser Field Laser [Rating: 43] Favorites ----------- Power Ion Engine Engine Ion Engine Power Core Light Nuclear Core Propulsion Improved Carbon-fiber Leg Treads Medium Treads Leg Improved Carbon-fiber Leg Wheel Wheel Utility Machine Analyzer Device Improved Heat Sink Processor Machine Analyzer Hackware System Shield Protection Core Shielding Weapon Heavy Laser Energy Gun Heavy Laser Special Weapon Mining Laser Slashing Weapon Katana Build | -11 -10 -9 -9 -8 -8 -8 -7 -7 -7 -7 ------- Run | Yrd Mat Mat Min Mat Gar Mat Fac Was Fac Low Slots Evolved 6 | . . 2 . 2 . . 2 . . . Power . | . . . . . . . . . . . Propulsion 2 | . . 1 . 1 . . . . . . Utility 4 | . . 1 . 1 . . 2 . . . Weapon . | . . . . . . . . . . . Parts Attached 72 | 4 4 9 4 14 22 8 . . 2 5 Power 8 | 1 . 1 1 . 3 1 . . . 1 Engine 7 | 1 . 1 1 . 2 1 . . . 1 Core 1 | . . . . . 1 . . . . . Reactor . | . . . . . . . . . . . Propulsion 23 | 2 . 2 2 5 5 4 . . 2 1 Treads 8 | . . . 2 4 2 . . . . . Leg 10 | . . . . 1 3 4 . . 2 . Wheel 5 | 2 . 2 . . . . . . . 1 Hover . | . . . . . . . . . . . Flight . | . . . . . . . . . . . Utility 21 | . 2 2 . 4 9 1 . . . 3 Device 8 | . 1 . . 1 4 . . . . 2 Storage . | . . . . . . . . . . . Processor 6 | . 1 2 . 2 1 . . . . . Hackware 1 | . . . . 1 . . . . . . Protection 6 | . . . . . 4 1 . . . 1 Artifact . | . . . . . . . . . . . Weapon 20 | 1 2 4 1 5 5 2 . . . . Energy Gun 17 | 1 1 4 1 5 3 2 . . . . Energy Cannon . | . . . . . . . . . . . Ballistic Gun . | . . . . . . . . . . . Ballistic Cannon . | . . . . . . . . . . . Launcher . | . . . . . . . . . . . Special Weapon 1 | . 1 . . . . . . . . . Impact Weapon . | . . . . . . . . . . . Slashing Weapon 2 | . . . . . 2 . . . . . Piercing Weapon . | . . . . . . . . . . . Special Melee Weapon . | . . . . . . . . . . . Unidentified Prototypes 3 | . . 1 . 1 . 1 . . . . Parts Lost 32 | . . 5 4 . 9 2 . 5 1 6 Power 5 | . . . 2 . 1 1 . . . 1 Propulsion 11 | . . 3 2 . 3 . . 1 . 2 Utility 11 | . . 1 . . 4 . . 3 1 2 Weapon 5 | . . 1 . . 1 1 . 1 . 1 Highest Loss Streak 7 | . . 2 2 . 7 1 . 5 1 5 To Critical Strikes . | . . . . . . . . . . . Average Backups 4 | 1 3 4 4 4 3 5 5 5 1 1 Power . | . . . . . . . . . . . Propulsion . | 1 2 2 . . . . 1 1 . . Utility 1 | . . . 1 2 2 2 2 2 . . Weapon 1 | . 1 1 2 2 1 1 2 2 1 1 Tool/Special . | . . . . . . . . . . . Unused Backups 4 | . . . 1 2 . . . . . 1 Power . | . . . . . . . . . . . Propulsion . | . . . . . . . . . . . Utility 1 | . . . 1 . . . . . . . Weapon 3 | . . . . 2 . . . . . 1 Tool/Special . | . . . . . . . . . . . Average Slot Usage (%) 82 | . 81 78 85 88 95 97 84 56 34 18 Engine 7 | . 14 11 10 6 7 7 7 5 . . Treads 11 | . . . 18 26 19 . . . . . Leg 12 | . . . . 2 14 35 30 19 13 4 Wheel 3 | . 28 24 1 . . . . . . 2 Device 6 | . 5 4 . 7 9 9 7 2 6 6 Processor 14 | . 5 17 33 19 13 9 7 7 . . Protection 7 | . . . . . 11 18 15 8 6 2 Energy Gun 16 | . 22 18 22 18 17 15 15 11 . . Peak Build Rating 43 | 4 7 15 17 43 41 39 39 39 20 26 Average Rating 24 | 3 5 8 16 35 28 33 39 25 18 12 On Entrance 18 | . 4 7 14 15 41 24 39 39 2 19 Avg Prop Armor Cover (%) 10 | . . . . 14 9 12 9 11 10 13 Naked Turns 120 | . . . . . . . . 7 . 113 Heaviest Build 28 | 6 9 16 18 15 21 22 22 22 6 28 Greatest Support 112 | 20 20 30 40 112 112 72 36 36 35 28 Greatest Overweight (x) 5 | . . 1 1 . 5 . . . . 1 Average Overweight (x) . | . . . . . . . . . . . Largest Inventory Capacity 5 | 5 5 5 5 5 5 5 5 5 5 5 Average Capacity 5 | 5 5 5 5 5 5 5 5 5 5 5 Most Carried 5 | 3 4 5 5 5 5 5 5 5 4 2 Average Carried 4 | 1 3 4 4 4 3 5 5 5 1 1 Final Capacity 5 | 5 5 5 5 5 5 5 5 5 5 5 Final Carried 5 | 3 4 5 5 5 5 5 5 5 1 1 Class Distribution -------------------- 58% | Mutant 31% | Scavenger-Mutant 10% | Skirmisher Dominant Class ---------------- Mutant | -10/Materials Mutant | -9/Materials Mutant | -9/Mines Skirmisher | -8/Materials Scavenger-Mutant | -8/Garrison Scavenger-Mutant | -8/Materials Mutant | -7/Factory Mutant | -7/Waste Mutant | -7/Factory Mutant | -7/Lower Caves Resources | -11 -10 -9 -9 -8 -8 -8 -7 -7 -7 -7 ----------- Run | Yrd Mat Mat Min Mat Gar Mat Fac Was Fac Low Matter Collected 1337 | 196 . 145 196 150 406 135 20 . . 89 Remotely . | . . . . . . . . . . . Salvage Created 1938 | . . 284 44 212 870 438 60 . . 30 Parts 110 | . . 17 2 9 54 22 5 . . 1 Haulers Intercepted 2 | . . 1 . . . 1 . . . . Recyclers Shooed 2 | . . 2 . . . . . . . . Parts Field Recycled . | . . . . . . . . . . . Retrieved Matter . | . . . . . . . . . . . Parts Self-Destructed 2 | . . . . . . . . . . 2 Prevented . | . . . . . . . . . . . Parts Restored . | . . . . . . . . . . . Kills | -11 -10 -9 -9 -8 -8 -8 -7 -7 -7 -7 ------- Run | Yrd Mat Mat Min Mat Gar Mat Fac Was Fac Low Combat Hostiles Destroyed 47 | . . 7 1 4 24 9 1 . . 1 Melee 1 | . . . . . . . . . . 1 Guns 43 | . . 7 1 4 24 6 1 . . . AOE 2 | . . . . . . 2 . . . . Classes Destroyed 11 | . . 5 . 1 2 3 . . . . Worker 1 | . . . . . . 1 . . . . Builder 1 | . . 1 . . . . . . . . Hauler 2 | . . 1 . . . 1 . . . . Mechanic 1 | . . . . . . 1 . . . . Swarmer 17 | . . 3 . . 9 4 . . . 1 Cutter 3 | . . . . . 3 . . . . . Grunt 10 | . . 3 1 2 3 1 . . . . Brawler 2 | . . 1 . . 1 . . . . . Duelist 3 | . . . . . 3 . . . . . Sentry 10 | . . . . 2 5 3 . . . . Hunter 2 | . . . . . . 1 1 . . . Best Kill Streak 7 | . . 5 1 3 3 7 1 . . 1 Combat Bots Only 5 | . . 5 1 3 3 5 1 . . 1 Max Kills in Single Turn 4 | . . 1 1 1 2 4 1 . . 1 Gunslinging 1 | . . . . . 1 . . . . . Exploded 2 | . . . . . . 2 . . . . Melee 1 | . . . . . . . . . . 1 Uniques/NPCs Destroyed . | . . . . . . . . . . . Combat | -11 -10 -9 -9 -8 -8 -8 -7 -7 -7 -7 -------- Run | Yrd Mat Mat Min Mat Gar Mat Fac Was Fac Low Hostile Shots Fired 432 | . . 37 57 13 108 55 4 5 36 117 Missed 130 | . . 5 15 3 18 29 . 1 22 37 Hits 302 | . . 32 42 10 90 26 4 4 14 80 Melee 32 | . . . 4 . 24 . . 4 . . Projectile 270 | . . 32 38 10 66 26 4 . 14 80 AOE 2 | . . . . . 2 . . . . . Critical Strikes 11 | . . 1 . . 7 . 1 2 . . Actively Blocked 2 | . . . . . 1 . . 1 . . Damage Taken 5027 | . . 502 545 159 1805 349 71 193 152 1251 Core 1425 | . . 199 67 . 443 16 12 130 56 502 Absorbed by Shields 13 | . . . . . 13 . . . . . Redirected to Shielding 44 | . . . . . 17 3 3 21 . . Core Remaining (%) 62 | 100 100 . 33 . . 16 . . . . Volleys Fired 148 | . 2 32 9 9 62 31 3 . . . Largest 2 | . 1 2 2 2 2 2 2 . . . Hottest 138 | . 100 100 131 138 138 125 105 . . . Shots Fired 279 | . 2 61 18 18 118 56 6 . . . Gun 277 | . . 61 18 18 118 56 6 . . . Cannon . | . . . . . . . . . . . Launcher . | . . . . . . . . . . . Special 2 | . 2 . . . . . . . . . Kinetic . | . . . . . . . . . . . Thermal 252 | . 2 61 18 18 118 35 . . . . Explosive . | . . . . . . . . . . . Electromagnetic 27 | . . . . . . 21 6 . . . Robot Hit Streak 17 | . . 6 13 4 10 17 14 . . . Robot Miss Streak 5 | . . 3 2 1 4 5 . . . . Penetration Max . | . . . . . . . . . . . Secondary Targets 5 | . . . . . 4 1 . . . . Max Gunslinging Chain 1 | . . . . . 1 1 . . . . Shots Hit Robots 186 | . . 35 14 11 75 40 5 . . 6 Core Hits 82 | . . 16 1 7 34 19 3 . . 2 Critical Kills . | . . . . . . . . . . . Critical Parts Destroyed . | . . . . . . . . . . . Critical Strikes 12 | . . 3 1 . 5 2 . . . 1 Burn 11 | . . 3 1 . 5 2 . . . . Sever 1 | . . . . . . . . . . 1 Melee Attacks 17 | . . . . . 5 3 . . . 9 Impact . | . . . . . . . . . . . Slashing 17 | . . . . . 5 3 . . . 9 Piercing . | . . . . . . . . . . . Sneak Attacks 1 | . . . . . . 1 . . . . Combat Hostiles . | . . . . . . . . . . . Follow-up Attacks . | . . . . . . . . . . . Damage Inflicted 3533 | . . 450 245 212 1512 815 101 . . 198 Guns 3023 | . . 450 242 212 1512 506 101 . . . Cannons . | . . . . . . . . . . . Explosions 180 | . . . . . . 180 . . . . Melee 319 | . . . . . . 129 . . . 190 Ramming 11 | . . . 3 . . . . . . 8 Kinetic . | . . . . . . . . . . . Thermal 2975 | . . 450 242 212 1512 559 . . . . Explosive . | . . . . . . . . . . . Electromagnetic 228 | . . . . . . 127 101 . . . Impact . | . . . . . . . . . . . Slashing 319 | . . . . . . 129 . . . 190 Piercing . | . . . . . . . . . . . Highest Corruption 15 | . 4 . . . 1 2 . 10 11 15 Average Corruption 3 | . 3 . . . 1 1 . 10 10 12 Corruption Purged . | . . . . . . . . . . . Corruption Blocked . | . . . . . . . . . . . Effects 38 | . 1 . . . 8 7 . 3 5 14 Message Errors 12 | . . . . . 2 2 . 1 2 5 Matter Fused 3 | . . . . . . 2 . . 1 . Heat Flow Errors 6 | . . . . . 2 1 . 1 . 2 Energy Discharges 6 | . 1 . . . 2 . . . . 3 Parts Rejected 1 | . . . . . . . . . 1 . Data Loss (minor) 3 | . . . . . 1 . . . 1 1 Data Loss (major) 1 | . . . . . . . . . . 1 Misfires 2 | . . . . . 1 1 . . . . Alerts 2 | . . . . . . 1 . . . 1 Misdirections 2 | . . . . . . . . 1 . 1 Overload Shots . | . . . . . . . . . . . Overflow Damage 22 | . . . . . . . . . . 22 Projectiles . | . . . . . . . . . . . Explosions . | . . . . . . . . . . . Melee 22 | . . . . . . . . . . 22 Knockbacks . | . . . . . . . . . . . Impact . | . . . . . . . . . . . Kinetic . | . . . . . . . . . . . Secondary . | . . . . . . . . . . . Self-Inflicted Damage 4 | . . . . . . . . . . 4 Shots . | . . . . . . . . . . . Rammed 3 | . . . 2 . . . . . . 1 Targets Rammed 3 | . . . 2 . . . . . . 1 Kicked . | . . . . . . . . . . . Crushed . | . . . . . . . . . . . Highest Temperature 806 | . 40 568 297 330 806 95 . 126 . 256 Average Temperature 187 | . 22 309 117 137 199 16 . 69 . 130 Received Heat Transfer 846 | . . 141 96 81 234 81 . . 24 189 Effects 51 | . . 24 . . 27 . . . . . Shutdowns 10 | . . 5 . . 5 . . . . . Energy Bleed 4 | . . 2 . . 2 . . . . . Interference 6 | . . 2 . . 4 . . . . . Matter Decay 7 | . . 4 . . 3 . . . . . Short Circuit 3 | . . . . . 3 . . . . . Damage (minor) 8 | . . 3 . . 5 . . . . . Damage (major) 8 | . . 6 . . 2 . . . . . Damage (core) 5 | . . 2 . . 3 . . . . . Siege Activations . | . . . . . . . . . . . Martial Activations . | . . . . . . . . . . . Shielding Activations . | . . . . . . . . . . . Robots Disrupted . | . . . . . . . . . . . Combat Hostiles . | . . . . . . . . . . . Robots Corrupted . | . . . . . . . . . . . Combat Hostiles . | . . . . . . . . . . . Parts Fried 1 | . . . . . . 1 . . . . Impact Corruptions . | . . . . . . . . . . . Robots Melted 1 | . . . . . . 1 . . . . Combat Hostiles 1 | . . . . . . 1 . . . . Parts Melted 23 | . . 1 1 . 14 7 . . . . Heat Transferred 6959 | . . 1518 592 407 3219 1223 . . . . Parts Sabotaged . | . . . . . . . . . . . Parts Stolen . | . . . . . . . . . . . Parts Stripped . | . . . . . . . . . . . Power Chain Reactions 1 | . . . . . . 1 . . . . Alert | -11 -10 -9 -9 -8 -8 -8 -7 -7 -7 -7 ------- Run | Yrd Mat Mat Min Mat Gar Mat Fac Was Fac Low Maximum Alert Level 3 | . . . . . 3 2 . . . . Low Security (%) 54 | 100 100 100 100 100 8 . 100 100 100 . Level 1 13 | . . . . . 26 28 . . . . Level 2 24 | . . . . . 39 71 . . . . Level 3 7 | . . . . . 25 . . . . . Level 4 . | . . . . . . . . . . . Level 5 . | . . . . . . . . . . . High Security . | . . . . . . . . . . . Max Security . | . . . . . . . . . . . Peak Influence 893 | . 20 101 30 95 893 534 193 59 . . Initial 434 | . . . 18 . 61 434 193 59 . . Average 234 | . 2 55 1 10 478 429 170 31 . . Influence Increases 1992 | . 20 198 30 132 922 523 57 . . 110 Destroy 0b10 Robot/C 1080 | . . 140 20 80 480 320 20 . . 20 Destroy 0b10 Robot/NC 30 | . . 10 . . 5 15 . . . . Destroy Leader 194 | . . 32 10 20 20 102 10 . . . Allied During Kill 56 | . . . . . 1 55 . . . . Successful Hack 67 | . 5 . . 16 21 13 12 . . . Disable Machine 90 | . 15 . . . 75 . . . . . Anti-Garrison Action 300 | . . . . . 300 . . . . . Destroy Structure 10 | . . 1 . 1 5 3 . . . . Partial Spotted 30 | . . 15 . . . . 15 . . . Lose Combat Pursuer 135 | . . . . 15 15 15 . . . 90 Influence Decreases 1992 | . 20 150 78 37 124 991 312 170 . 110 Entered New Map 866 | . . . 30 . 34 459 232 111 . . Time Decay 687 | . 20 100 38 37 . 302 80 20 . 90 Lost Part 229 | . . 50 10 . 90 20 . 39 . 20 Lost Ally 60 | . . . . . . 60 . . . . Purge Threat 150 | . . . . . . 150 . . . . Squads Dispatched 5 | . . 2 . 1 . 1 . . 1 . Investigation 1 | . . . . . . . . . 1 . Extermination . | . . . . . . . . . . . Reinforcement 3 | . . 2 . 1 . . . . . . Assault . | . . . . . . . . . . . Garrison 1 | . . . . . . 1 . . . . Intercept . | . . . . . . . . . . . Searches Triggered . | . . . . . . . . . . . Construction Impeded . | . . . . . . . . . . . Haulers Reinforced . | . . . . . . . . . . . Active Scanning Responses . | . . . . . . . . . . . Cargo Convoy Interrupts . | . . . . . . . . . . . Stealth | -11 -10 -9 -9 -8 -8 -8 -7 -7 -7 -7 --------- Run | Yrd Mat Mat Min Mat Gar Mat Fac Was Fac Low Distress Signals 7 | . . 1 . . . 6 . . . . Communications Jammed . | . . . . . . . . . . . Distress Signals . | . . . . . . . . . . . Times Spotted 100 | . . 14 13 9 24 19 2 6 1 12 Peak Tracking Total 8 | . . 8 7 4 3 7 1 6 1 7 Tactical Retreats 6 | . . . . 1 1 1 . . . 3 Traps | -11 -10 -9 -9 -8 -8 -8 -7 -7 -7 -7 ------- Run | Yrd Mat Mat Min Mat Gar Mat Fac Was Fac Low Traps Triggered 8 | . 2 . . . 2 2 1 . 1 . Indirectly . | . . . . . . . . . . . Trap Hack Attempts . | . . . . . . . . . . . Triggered . | . . . . . . . . . . . Disarmed . | . . . . . . . . . . . Reprogrammed . | . . . . . . . . . . . Reused . | . . . . . . . . . . . Traps Extracted . | . . . . . . . . . . . Installed . | . . . . . . . . . . . Triggered . | . . . . . . . . . . . Machines | -11 -10 -9 -9 -8 -8 -8 -7 -7 -7 -7 ---------- Run | Yrd Mat Mat Min Mat Gar Mat Fac Was Fac Low Machines Disabled 10 | . 1 . 1 . 8 . . . . . Max in Single Turn 1 | . 1 . 1 . 1 . . . . . Garrison Relay 3 | . . . . . 3 . . . . . Machines Repaired . | . . . . . . . . . . . Machines Dismantled . | . . . . . . . . . . . Machines Sabotaged . | . . . . . . . . . . . Overloaded Fab Kills . | . . . . . . . . . . . Hacking | -11 -10 -9 -9 -8 -8 -8 -7 -7 -7 -7 --------- Run | Yrd Mat Mat Min Mat Gar Mat Fac Was Fac Low Machines Accessed 23 | . 4 2 . 5 3 6 1 . 2 . Terminals 17 | . 3 1 . 4 3 5 . . 1 . Fabricators 1 | . . . . . . . . . 1 . Repair Stations . | . . . . . . . . . . . Recycling Units 2 | . 1 1 . . . . . . . . Scanalyzers 2 | . . . . . . 1 1 . . . Garrison Access 1 | . . . . 1 . . . . . . Total Hacks 55 | . 8 3 . 13 5 19 4 . 3 . Successful 21 | . 3 2 . 5 2 8 1 . . . Failed 33 | . 5 1 . 8 3 10 3 . 3 . Catastrophic 3 | . . . . 2 . . . . 1 . Database Lockouts 1 | . . . . . . 1 . . . . Manual 25 | . 2 1 . 9 . 12 . . 1 . Terminals 41 | . 6 2 . 10 5 17 . . 1 . Fabricators 2 | . . . . . . . . . 2 . Repair Stations . | . . . . . . . . . . . Recycling Units 3 | . 2 1 . . . . . . . . Scanalyzers 6 | . . . . . . 2 4 . . . Garrison Access 3 | . . . . 3 . . . . . . Terminal Hacks 9 | . 2 1 . 1 2 3 . . . . Prototype ID Bank 4 | . 2 . . 1 . 1 . . . . Open Door 1 | . . . . . 1 . . . . . Emergency Access Points 1 | . . . . . 1 . . . . . Terminal Index 1 | . . . . . . 1 . . . . Unreport Threat 1 | . . . . . . 1 . . . . Zone Layout 1 | . . 1 . . . . . . . . Fabricator Hacks . | . . . . . . . . . . . Repair Station Hacks . | . . . . . . . . . . . Recycling Unit Hacks 1 | . 1 . . . . . . . . . Report Inventory 1 | . 1 . . . . . . . . . Scanalyzer 2 | . . . . . . 1 1 . . . Retrieve Study 2 | . . . . . . 1 1 . . . Garrison Access Hacks 1 | . . . . 1 . . . . . . Unlock Access 1 | . . . . 1 . . . . . . Unauthorized Hacks 8 | . . 1 . 3 . 4 . . . . Terminals 7 | . . . . 3 . 4 . . . . Botnet 7 | . . . . 3 . 4 . . . . Fabricators . | . . . . . . . . . . . Repair Stations . | . . . . . . . . . . . Recycling Units 1 | . . 1 . . . . . . . . Reject 1 | . . 1 . . . . . . . . Scanalyzers . | . . . . . . . . . . . Garrison Access . | . . . . . . . . . . . Data Cores Recovered . | . . . . . . . . . . . Used . | . . . . . . . . . . . Hacking Detections 19 | . 3 1 . 5 2 5 1 . 2 . Full Trace Events 3 | . . . . . 1 1 . . 1 . Feedback Events . | . . . . . . . . . . . Feedback Blocked . | . . . . . . . . . . . Robot Schematics Acquired . | . . . . . . . . . . . Robots Built . | . . . . . . . . . . . Authchips . | . . . . . . . . . . . Time . | . . . . . . . . . . . Total Robot Build Rating . | . . . . . . . . . . . Part Schematics Acquired . | . . . . . . . . . . . Parts Built . | . . . . . . . . . . . Authchips . | . . . . . . . . . . . Time . | . . . . . . . . . . . Total Part Build Rating . | . . . . . . . . . . . Part Studies Acquired 1 | . . . . . . . 1 . . . Parts Repaired . | . . . . . . . . . . . Time . | . . . . . . . . . . . Parts Recycled . | . . . . . . . . . . . Recycled Matter . | . . . . . . . . . . . Retrieved Matter . | . . . . . . . . . . . Retrieved Components . | . . . . . . . . . . . Parts Scanalyzed . | . . . . . . . . . . . Part Schematics Acquired . | . . . . . . . . . . . Parts Damaged . | . . . . . . . . . . . Bothacking | -11 -10 -9 -9 -8 -8 -8 -7 -7 -7 -7 ------------ Run | Yrd Mat Mat Min Mat Gar Mat Fac Was Fac Low Used RIF Installer 1 | . . . . . 1 . . . . . Robots Hacked . | . . . . . . . . . . . Non-combat . | . . . . . . . . . . . Combat . | . . . . . . . . . . . Robot Hacks Applied . | . . . . . . . . . . . Relay Couplers Released 13 | . . . . . 13 . . . . . Machine Destruction 13 | . . . . . 13 . . . . . Fabnet Peak Effective % . | . . . . . . . . . . . Robots Rewired 4 | . . . . . 4 . . . . . Allies Hacked . | . . . . . . . . . . . Hacks Repelled . | . . . . . . . . . . . Allies | -11 -10 -9 -9 -8 -8 -8 -7 -7 -7 -7 -------- Run | Yrd Mat Mat Min Mat Gar Mat Fac Was Fac Low Total Allies 4 | . . . . . 4 . . . . . Largest Group 4 | . . . . . 4 4 . . . . Highest-Rated Group 106 | . . . . . 106 106 . . . . Highest-Rated Ally 31 | . . . . . 31 31 . . . . Total Orders . | . . . . . . . . . . . Ally Attacks 29 | . . . . . . 29 . . . . Total Damage 652 | . . . . . . 652 . . . . Kills 7 | . . . . . . 7 . . . . Allies Corrupted . | . . . . . . . . . . . Allies Melted . | . . . . . . . . . . . Intel | -11 -10 -9 -9 -8 -8 -8 -7 -7 -7 -7 ------- Run | Yrd Mat Mat Min Mat Gar Mat Fac Was Fac Low Active Infowar (turns) 2388 | . 74 91 . 418 903 666 165 69 2 . Sensors 633 | . 74 91 . 418 48 . . . 2 . Machine Analysis 2172 | . . . . 369 903 666 165 69 . . Robot Analysis Total . | . . . . . . . . . . . Derelict Logs Recovered 4 | . . . 1 . . . . . . 3 Drone Launches . | . . . . . . . . . . . Drone Recoveries . | . . . . . . . . . . . Exploration | -11 -10 -9 -9 -8 -8 -8 -7 -7 -7 -7 ------------- Run | Yrd Mat Mat Min Mat Gar Mat Fac Was Fac Low Turns Passed 4229 | 32 182 241 719 471 1216 666 165 76 156 305 Spaces Moved 2817 | 30 209 144 453 261 577 412 126 92 136 377 Core 268 | 1 . . . . 2 . . 41 . 224 Treads 867 | . . . 372 196 295 4 . . . . Legs 1128 | . . . . 65 280 408 126 51 136 62 Wheels 554 | 29 209 144 81 . . . . . . 91 Hover . | . . . . . . . . . . . Flight . | . . . . . . . . . . . Fastest Speed 50 | 50 80 80 95 120 120 120 105 50 105 50 Average Speed 117 | 79 80 82 148 150 140 120 113 80 109 71 Slowest Speed 300 | 80 80 95 160 160 300 160 120 105 130 105 Overloaded Moves . | . . . . . . . . . . . Propulsion Burnouts . | . . . . . . . . . . . Robots Hopped . | . . . . . . . . . . . Potential Cave-ins . | . . . . . . . . . . . Cave-ins Triggered . | . . . . . . . . . . . Exploration Rate (%) 40 | 3 45 23 87 30 63 48 4 72 8 66 Regions Visited 10 Branch Regions 2 Pre-discovered Areas 1 | . . . 1 . . . . . . . Known Exits Taken 3 | . 1 . 1 1 . . . . . . Unknown Exits Taken 4 | 1 . 1 . . . 1 . . 1 . Scrap Searched 5 | . . . 2 . . . . . . 3 Spaces Dug . | . . . . . . . . . . . Terrain Destroyed 2 | . . . . . . 2 . . . . Melee . | . . . . . . . . . . . Projectile . | . . . . . . . . . . . AOE 2 | . . . . . . 2 . . . . Terrain Rammed . | . . . . . . . . . . . Walls Destroyed . | . . . . . . . . . . . Machines Disabled . | . . . . . . . . . . . Actions | -11 -10 -9 -9 -8 -8 -8 -7 -7 -7 -7 --------- Run | Yrd Mat Mat Min Mat Gar Mat Fac Was Fac Low Total 3400 | 36 216 203 480 323 847 520 143 93 141 398 Wait 213 | . . 14 8 26 87 58 14 1 . 5 Move 2807 | 29 208 143 452 260 575 411 126 91 135 377 Hop . | . . . . . . . . . . . Pick Up 22 | 3 2 2 3 6 3 2 . . . 1 Fast Attach 38 | 4 2 4 . 4 14 4 . . 2 4 Attach 16 | . 1 2 3 1 4 . . . 4 1 Detach 1 | . . 1 . . . . . . . . Swap 35 | . 1 3 2 10 12 7 . . . . Drop 19 | . . 2 1 7 5 4 . . . . Fire 148 | . 2 32 9 9 62 31 3 . . . Melee 17 | . . . . . 5 3 . . . 9 Ram 2 | . . . . . . . . 1 . 1 Kick . | . . . . . . . . . . . Crush 2 | . . . 2 . . . . . . . Escape Stasis 9 | . . . . . 9 . . . . . Rewire 71 | . . . . . 71 . . . . . Trap . | . . . . . . . . . . . Miscellaneous . | . . . . . . . . . . . Route ------- -11/Scrapyard -10/Materials -9/Materials -9/Mines -8/Materials -8/Garrison (discovered 3 exits: *Mat x3) -8/Materials -7/Factory -7/Waste -7/Factory -7/Lower Caves (discovered 1 exit: Low) History --------- Turn | Location | Event 21 | -11/Scrapyard | Discovered new exit (range 14) 33 | -11/Scrapyard | Entered Materials 200 | -10/Materials | Discovered new exit (range 8) 215 | -10/Materials | Identified exit to Materials 215 | -10/Materials | Entered another Materials area 215 | -9/Materials | Evolved 2 slots: Propulsion x1, Utility x1 310 | -9/Materials | Build established: Mutant 450 | -9/Materials | Discovered new exit (range 7) 456 | -9/Materials | Entered Mines 531 | -9/Mines | Joined a pair of Derelicts in attacking an 0b10 outpost 541 | -9/Mines | Core integrity fell below 50% 895 | -9/Mines | Found a damaged Exp. Sensor Array with a note attached 899 | -9/Mines | Found Prototype Device 1159 | -9/Mines | Discovered new exit (range 10) 1173 | -9/Mines | Identified exit to Materials 1175 | -9/Mines | Entered Materials 1175 | -8/Materials | Evolved 2 slots: Propulsion x1, Utility x1 1228 | -8/Materials | Identified Exp. Sensor Array 1564 | -8/Materials | Build established: Skirmisher 1640 | -8/Materials | Identified exit to Garrison 1646 | -8/Materials | Entered Garrison 1674 | -8/Garrison | Triggered checkpoint 1714 | -8/Garrison | Garrison Relay disabled 1892 | -8/Garrison | Triggered checkpoint 1943 | -8/Garrison | Discovered new exit (range 12) 1959 | -8/Garrison | Identified exit to Materials 1990 | -8/Garrison | Triggered checkpoint 1997 | -8/Garrison | Build established: Mutant 2067 | -8/Garrison | Lost 7 parts (1p3n3u) 2080 | -8/Garrison | Garrison Relay disabled 2149 | -8/Garrison | Core integrity fell below 50% 2228 | -8/Garrison | Triggered checkpoint 2280 | -8/Garrison | Triggered checkpoint 2308 | -8/Garrison | Garrison Relay disabled 2333 | -8/Garrison | Discovered exit to Materials (range 14) 2337 | -8/Garrison | Build established: Scavenger-Mutant 2396 | -8/Garrison | Triggered checkpoint 2478 | -8/Garrison | Triggered checkpoint 2545 | -8/Garrison | Core integrity fell below 20% 2727 | -8/Garrison | Installed Relay Interface Framework 2738 | -8/Garrison | Discovered exit to Materials (range 12) 2862 | -8/Garrison | Entered Materials 2862 | -8/Materials | Accompanied by 4 allies 2926 | -8/Materials | Garrison activated, responded to threat 3243 | -8/Materials | Central database locked down 3511 | -8/Materials | Discovered new exit (range 10) 3528 | -8/Materials | Entered Factory 3528 | -7/Factory | Evolved 2 slots: Utility x2 3677 | -7/Factory | Build established: Mutant 3693 | -7/Factory | Sucked down chute 3693 | -7/Factory | Entered Waste 3706 | -7/Waste | Spotted C-40 Crusher 3708 | -7/Waste | EMP discharged 3708 | -7/Waste | System corruption reached 10% 3719 | -7/Waste | Crushed by Compactor (1 part destroyed, 2 dropped) 3725 | -7/Waste | Spotted C-40 Crusher 3735 | -7/Waste | Spotted C-40 Crusher 3739 | -7/Waste | Spotted C-40 Crusher 3744 | -7/Waste | Crushed by Compactor (1 part destroyed, 2 dropped) 3749 | -7/Waste | Crushed by Compactor (1 part destroyed, 2 dropped) 3753 | -7/Waste | Spotted C-40 Crusher 3757 | -7/Waste | Spotted C-40 Crusher 3762 | -7/Waste | Discovered new exit (range 13) 3762 | -7/Waste | Crushed by Compactor (1 part destroyed) 3769 | -7/Waste | Entered Factory 3793 | -7/Factory | Lost 5 parts (1n3u1w) 3908 | -7/Factory | Discovered new exit (range 15) 3925 | -7/Factory | Entered Lower Caves 3926 | -7/Lower Caves | Encountered a Warlord checkpoint 3950 | -7/Lower Caves | Attracted the attention of an 0b10 base 3989 | -7/Lower Caves | Core integrity fell below 50% 4023 | -7/Lower Caves | Core integrity fell below 20% 4040 | -7/Lower Caves | Identified exit to Lower Caves 4051 | -7/Lower Caves | Lost 5 parts (2n2u1w) 4108 | -7/Lower Caves | Learned Factory terminal intel 4230 | -7/Lower Caves | Destroyed by S-27 Virus with Autogun Last Messages --------------- Acquired Arm. Huge Wheel. Acquired 10 matter. Searching scrap... Found Launcher Guidance Computer. Found Hrd. Heavy Armor Plating. Found Field Recycling Unit. Found 56 Matter. Acquired Hrd. Heavy Armor Plating. Acquired 10 matter. Acquired Field Recycling Unit. Acquired 10 matter. Slammed into P-60 Hacker. Destabilizing: System corrupted (+1). D5-0JH(k) breaks down the debris. System corrupted: Energy discharge (-5). P-60 Hacker resets D5-0JH(k), system corruption cleaned. System corrupted: Component data lost. 2P-S41(k) destroyed. I???????????#???????????????? ###????? | | ?????????????????????????????????????????????????? | | ?????????????????????????????????????????????????? | | ?????????????????????????????????????????????????? | | ?????????????????????????????????????????????????? | | ?????????????????????????????????????????????????? | | ?????????????????????????????????????????????##### | | ?????????????????????????????????????????????# ## | | ?????????????????????????????????????????????# %# | | ?????????????????????????????????????????????##% | | ??????????????????????????????????????????????##! | | ???????????????????????????????????????????????### | | ?????????????????????????????????????????????????? | | ?????????????????????????????????????????????????? | | ?????????????????????????????????????????????????? | | ?????????????????????????????????????????????????? | | ?????????????????????????????????????????????????? | +----------------------------------------------------+ Best States ------------- Heat Dissipation 61 Energy Generation 14 Energy Capacity 275 Matter Stores 300 Matter Capacity 300 Sight Range 16 Robot Scan Range 20 Terrain Scan Density 10 Armor Coverage 600 Core Shielding 20 Evasion (%) 55 Targeting Accuracy 12 Recoil Reduction 4 Particle Charging 15 Defensive Hacking 10 Item Schematics ----------------- None Robot Schematics ------------------ None Fabricated ------------ Nothing Repaired ---------- Nothing Studied --------- Imp. Carbon-fiber Leg | -7/Factory | Hacked Alien Tech Used ----------------- None Achievements -------------- We Love MA Challenges ------------ None Game ------ Seed BiometalBackupDrive Manual? 0 Play Time 00:41:41 Cumulative 51.5 hours Start 2025.11.11 @ 19:50:59 End 2025.11.13 @ 18:06:04 Sessions 3 Manual Loads 0 Difficulty Rogue Special Mode None Game No. 59 Rogue 59 Adventurer 0 Explorer 0 Win Type - Total 1 Types 1/0/0/0/0/0/0/0/0/0 Lore% 47 Gallery% 43 Achievement% 31 Wizard Run 0 Options --------- Layout 1 ASCII 0 Keyboard 0 Movement Numpad Keybinds 0 Fullscreen 1 Font 32/SmallcapsGlow Map View 50x35 Zoom Use 0% Tactical HUD 0 Map Filters NONE Filters NONE Steam 1 RUN: ef2bae76-51a5-4d22-a8e1-26a5030aab01